bitfinex/quotes_BTCUSD_20250726
["timestamp","ask_amount","ask_price","bid_price","bid_amount"]
[1753500110122,0.48904041,117610.0,117600.0,0.38544919]
[1753500110343,0.31898685,117610.0,117600.0,0.38544875]
[1753500110569,0.31048418,117610.0,117600.0,0.39402991]
[1753500110810,0.30298158,117610.0,117600.0,0.39402948]
[1753500111032,1.01772445,117610.0,117600.0,0.00048499]
[1753500119926,0.82326807,117610.0,117600.0,0.19606247]
[1753500120153,0.81576305,117610.0,117600.0,0.21026958]
[1753500120585,0.342,117610.0,117600.0,0.24842558]
[1753500120814,0.342,117610.0,117600.0,0.54900246]
[1753500121050,0.01050202,117610.0,117600.0,0.54900246]
[1753500121269,0.01050202,117610.0,117600.0,0.26502558]
[1753500121483,0.002,117610.0,117600.0,0.26502558]
[1753500121894,0.002,117610.0,117600.0,0.54900246]
[1753500123471,0.002,117610.0,117600.0,0.26502558]
[1753500124391,0.002,117610.0,117600.0,0.54900246]
[1753500124858,0.002,117610.0,117600.0,0.26502558]
[1753500131875,0.0105021,117610.0,117600.0,0.26502558]
[1753500132098,0.002,117610.0,117600.0,0.26502558]
[1753500132301,0.01050202,117610.0,117600.0,0.26502558]
[1753500132874,0.002,117610.0,117600.0,0.26502558]
[1753500134200,0.01050202,117610.0,117600.0,0.26502558]
[1753500134387,0.002,117610.0,117600.0,0.26502558]
[1753500135457,0.0105021,117610.0,117600.0,0.26502558]
[1753500136887,0.002,117610.0,117600.0,0.26502558]
[1753500139467,0.01050202,117610.0,117600.0,0.26502558]
[1753500140098,0.002,117610.0,117600.0,0.26502558]
[1753500141163,0.0105021,117610.0,117600.0,0.26502558]
[1753500141367,0.01050202,117610.0,117600.0,0.26502558]
[1753500141984,0.002,117610.0,117600.0,0.26502558]
[1753500144576,0.01050217,117610.0,117600.0,0.23232558]
[1753500144808,0.01050217,117610.0,117600.0,0.24862558]
[1753500145022,0.02750694,117610.0,117600.0,0.23232558]
[1753500145861,0.01900448,117610.0,117600.0,0.23232558]
[1753500146094,0.002,117610.0,117600.0,0.23232558]
[1753500146306,0.01900426,117610.0,117600.0,0.23232558]
[1753500146707,0.02750664,117610.0,117600.0,0.23232558]
[1753500146916,0.30309995,117610.0,117600.0,0.23232558]
[1753500148524,0.31160233,117610.0,117600.0,0.23232558]
[1753500153120,0.32010479,117610.0,117600.0,0.23232558]
[1753500154010,0.30309995,117610.0,117600.0,0.23232558]
[1753500154224,0.30309988,117610.0,117600.0,0.23232558]
[1753500154856,0.31160212,117610.0,117600.0,0.23232558]
[1753500157572,0.02750643,117610.0,117600.0,0.23232558]
[1753500158477,0.01900419,117610.0,117600.0,0.23232558]
[1753500159097,0.01900419,117610.0,117600.0,0.51642127]
[1753500159523,0.01050202,117610.0,117600.0,0.51642127]
[1753500159736,0.002,117610.0,117600.0,0.66052127]
[1753500159942,0.002,117610.0,117600.0,0.37642558]
[1753500160157,0.002,117610.0,117600.0,0.96001696]
[1753500161041,0.001,117610.0,117600.0,0.39182558]
[1753500161245,0.001,117610.0,117600.0,0.96001696]
[1753500161453,0.00850065,117630.0,117620.0,0.19554408]
[1753500161688,0.01700144,117630.0,117620.0,0.32644408]
[1753500162114,0.01700144,117630.0,117620.0,0.35245408]
[1753500162548,0.01900137,117630.0,117620.0,0.35245408]
[1753500163127,0.01050065,117630.0,117620.0,0.35245408]
[1753500163348,0.002,117630.0,117620.0,0.66724977]
[1753500163732,0.003,117630.0,117620.0,0.66724977]
[1753500164171,0.001,117630.0,117620.0,0.66724977]
[1753500164543,0.8598921,117650.0,117640.0,0.19551085]
[1753500164795,0.8618721,117650.0,117640.0,0.19551085]
[1753500165133,0.8618721,117650.0,117640.0,0.20401092]
[1753500165553,0.87037181,117650.0,117640.0,0.19551099]
[1753500165728,0.87037174,117650.0,117640.0,0.19599598]
[1753500165958,0.87337174,117650.0,117640.0,0.19599598]
[1753500166882,0.58077641,117650.0,117640.0,0.20449605]
[1753500167071,0.58077641,117650.0,117640.0,0.21299605]
[1753500167272,0.41897902,117650.0,117640.0,0.21299605]
[1753500167516,0.00598,117650.0,117640.0,0.24110605]
[1753500167738,0.004,117650.0,117640.0,0.36990605]
[1753500168644,0.003,117650.0,117640.0,0.36990605]
[1753500168868,0.001,117650.0,117640.0,0.36990605]
[1753500169521,0.001,117650.0,117640.0,0.38500605]
[1753500170165,0.003,117650.0,117640.0,0.36990605]
[1753500170582,0.002,117650.0,117640.0,0.36990605]
[1753500170787,0.44769375,117660.0,117650.0,0.18699495]
[1753500170998,0.44967375,117660.0,117650.0,0.19549437]
[1753500171219,0.44967375,117660.0,117650.0,0.18699495]
[1753500171426,0.45817281,117660.0,117650.0,0.18699503]
[1753500171641,0.44967375,117660.0,117650.0,0.18699503]
[1753500171851,0.44967375,117660.0,117650.0,0.19549452]
[1753500172026,0.45267367,117660.0,117650.0,0.20399394]
[1753500172225,0.45267367,117660.0,117650.0,0.19549452]
[1753500173346,0.45267367,117660.0,117650.0,0.18699503]
[1753500173541,0.46117266,117660.0,117650.0,0.18699503]
[1753500173719,0.45919266,117660.0,117650.0,0.18699503]
[1753500173880,0.46131266,117660.0,117650.0,0.18699503]
[1753500174077,0.46131266,117660.0,117650.0,0.19549452]
[1753500174302,0.45281367,117660.0,117650.0,0.19549452]
[1753500174497,0.45281367,117660.0,117650.0,0.20399394]
[1753500176818,0.45281367,117660.0,117650.0,0.19549452]
[1753500177014,0.46131259,117660.0,117650.0,0.19549452]
[1753500177869,0.46131259,117660.0,117650.0,0.18699503]
[1753500178069,0.46131259,117660.0,117650.0,0.19549452]
[1753500178711,0.45281367,117660.0,117650.0,0.20399394]
[1753500179124,0.45281367,117660.0,117650.0,0.19549452]
[1753500179372,0.45281367,117660.0,117650.0,0.20399394]
[1753500179508,0.45281367,117660.0,117650.0,0.19549452]
[1753500180088,0.45281367,117660.0,117650.0,0.18699503]
[1753500180299,0.45281367,117660.0,117650.0,0.19549452]
[1753500180746,0.46131259,117660.0,117650.0,0.19549452]
[1753500182079,0.45281418,117660.0,117650.0,0.21863459]
[1753500183154,0.44431526,117660.0,117650.0,0.22713401]
[1753500183372,0.44431526,117660.0,117650.0,0.21863459]
[1753500183790,0.45281425,117660.0,117650.0,0.03163978]
[1753500184017,0.62279555,117660.0,117650.0,0.03163978]
[1753500184234,0.60579815,117660.0,117650.0,0.03163978]
[1753500184506,0.60579815,117660.0,117650.0,0.02314]
[1753500184719,0.84966688,117660.0,117650.0,0.03163978]
[1753500185147,0.84966688,117660.0,117650.0,0.20163553]
[1753500185148,0.59729931,117660.0,117650.0,0.20163553]
[1753500185564,0.59729931,117660.0,117650.0,0.03163978]
[1753500185912,0.59729931,117660.0,117650.0,0.04013949]
[1753500186123,0.59729931,117660.0,117650.0,0.21013524]
[1753500187363,0.59729931,117660.0,117650.0,0.21863488]
[1753500187833,0.84966688,117660.0,117650.0,0.21863488]
[1753500187997,0.84966688,117660.0,117650.0,0.21013524]
[1753500188241,0.84966688,117660.0,117650.0,0.21863488]
[1753500188443,0.84966688,117660.0,117650.0,0.20163553]
[1753500188774,0.88119138,117660.0,117650.0,0.21013524]
[1753500189800,0.59729931,117660.0,117650.0,0.22713445]
[1753500190011,0.88119138,117660.0,117650.0,0.22713445]
[1753500190215,0.88119138,117660.0,117650.0,0.23563394]
[1753500190418,0.88119138,117660.0,117650.0,0.22713445]
[1753500190970,0.68005885,117660.0,117650.0,0.2406438]
[1753500191172,0.68005885,117660.0,117650.0,0.23214445]
[1753500191389,0.68005885,117660.0,117650.0,0.24064387]
[1753500191795,0.68005885,117660.0,117650.0,0.23214445]
[1753500191971,0.68855791,117660.0,117650.0,0.24064394]
[1753500193748,0.68005885,117660.0,117650.0,0.23214416]
[1753500193949,0.39616634,117660.0,117650.0,0.23214416]
[1753500194153,0.68005841,117660.0,117650.0,0.24064351]
[1753500194719,0.66133841,117660.0,117650.0,0.24064351]
[1753500194895,0.66133834,117660.0,117650.0,0.24064308]
[1753500195270,0.66133834,117660.0,117650.0,0.2321438]
[1753500195476,0.66983718,117660.0,117650.0,0.22364445]
[1753500195681,0.66983711,117660.0,117650.0,0.23214387]
[1753500196634,0.65283964,117660.0,117650.0,0.24064322]
[1753500196831,0.66133834,117660.0,117650.0,0.23214358]
[1753500197037,0.65283964,117660.0,117650.0,0.24064286]
[1753500197244,0.66133834,117660.0,117650.0,0.23214358]
[1753500197688,0.37744634,117660.0,117650.0,0.23214358]
[1753500197912,0.66133834,117660.0,117650.0,0.24064286]
[1753500198123,0.66133834,117660.0,117650.0,0.23214358]
[1753500198338,0.66133834,117660.0,117650.0,0.24064286]
[1753500198741,0.66133827,117660.0,117650.0,0.24064286]
[1753500199153,0.66133827,117660.0,117650.0,0.22364423]
[1753500199367,0.68801704,117660.0,117650.0,0.23214358]
[1753500200042,0.68801697,117660.0,117650.0,0.22364423]
[1753500200250,0.82523574,117660.0,117650.0,0.23214358]
[1753500200485,0.82523574,117660.0,117650.0,0.22364423]
[1753500200700,0.82523574,117660.0,117650.0,0.23214358]
[1753500201292,0.83373466,117660.0,117650.0,0.22364423]
[1753500201934,0.54134367,117660.0,117650.0,0.23214351]
[1753500202068,0.54134367,117660.0,117650.0,0.23214358]
[1753500202069,0.82534574,117660.0,117650.0,0.23214358]
[1753500202689,0.82534574,117660.0,117650.0,0.22364423]
[1753500202901,0.83384466,117660.0,117650.0,0.22364423]
[1753500203343,0.83384466,117660.0,117650.0,0.21514481]
[1753500203775,0.83384466,117660.0,117650.0,0.22364423]
[1753500204339,0.82534574,117660.0,117650.0,0.23214358]
[1753500205496,0.53936367,117660.0,117650.0,0.21863423]
[1753500205643,0.83384458,117660.0,117650.0,0.23214358]
[1753500206456,0.82534574,117660.0,117650.0,0.23214358]
[1753500207270,0.83384466,117660.0,117650.0,0.22364423]
[1753500207472,0.82534574,117660.0,117650.0,0.23214358]
[1753500209556,0.81684697,117660.0,117650.0,0.24064286]
[1753500210459,0.343,117660.0,117650.0,0.53963493]
[1753500210674,0.47172,117660.0,117650.0,0.55613493]
[1753500211556,0.003,117660.0,117650.0,0.55613493]
[1753500212817,0.003,117660.0,117650.0,0.27224286]
[1753500212975,0.003,117660.0,117650.0,0.55613493]
[1753500216848,0.003,117660.0,117650.0,0.53963493]
[1753500217062,0.003,117660.0,117650.0,0.25574286]
[1753500219279,0.01149855,117660.0,117650.0,0.25574286]
[1753500220329,0.01149848,117660.0,117650.0,0.25574286]
[1753500221683,0.02849588,117660.0,117650.0,0.24064286]
[1753500222352,0.01999711,117660.0,117650.0,0.24064286]
[1753500223752,0.02849588,117660.0,117650.0,0.24064286]
[1753500224176,0.01999711,117660.0,117650.0,0.24064286]
[1753500224590,0.02849588,117660.0,117650.0,0.24064286]
[1753500225415,0.01999711,117660.0,117650.0,0.24064286]
[1753500226776,0.01149848,117660.0,117650.0,0.24064286]
[1753500226976,0.01999711,117660.0,117650.0,0.24064286]
[1753500227406,0.01149848,117660.0,117650.0,0.24064286]
[1753500227644,0.01999703,117660.0,117650.0,0.24064286]
[1753500229791,0.02849573,117660.0,117650.0,0.24064286]
[1753500232194,0.01999703,117660.0,117650.0,0.24064286]
[1753500232541,0.02849573,117660.0,117650.0,0.24064286]
[1753500233604,0.01999703,117660.0,117650.0,0.24064286]
[1753500235068,0.02849573,117660.0,117650.0,0.24064286]
[1753500236388,0.0369945,117660.0,117650.0,0.24064286]
[1753500236614,0.02849573,117660.0,117650.0,0.24064286]
[1753500237443,0.01999703,117660.0,117650.0,0.52453493]
[1753500238354,0.01999703,117660.0,117650.0,0.24064286]
[1753500239410,0.01999703,117660.0,117650.0,0.52453493]
[1753500239411,0.02849566,117660.0,117650.0,0.52453493]
[1753500239545,0.01999703,117660.0,117650.0,0.52453493]
[1753500240551,0.02849566,117660.0,117650.0,0.52453493]
[1753500242343,0.01999703,117660.0,117650.0,0.52453493]
[1753500243436,0.01149848,117660.0,117650.0,0.52453493]
[1753500243849,0.003,117660.0,117650.0,0.52453493]
[1753500246268,0.01149848,117660.0,117650.0,0.52453493]
[1753500246479,0.003,117660.0,117650.0,0.52453493]
[1753500247474,0.01149848,117660.0,117650.0,0.52453493]
[1753500247893,0.003,117660.0,117650.0,0.52453493]
[1753500248235,0.01149848,117660.0,117650.0,0.52453493]
[1753500248845,0.01149848,117660.0,117650.0,0.24064286]
[1753500249516,0.01999703,117660.0,117650.0,0.24064286]
[1753500249744,0.02849573,117660.0,117650.0,0.24064286]
[1753500251795,0.01999703,117660.0,117650.0,0.24064286]
[1753500252002,0.02849573,117660.0,117650.0,0.24064286]
[1753500252417,0.01999703,117660.0,117650.0,0.24064286]
[1753500253498,0.02849573,117660.0,117650.0,0.24064286]
[1753500254248,0.0284958,117660.0,117650.0,0.24064286]
[1753500255315,0.31238787,117660.0,117650.0,0.24064286]
[1753500256162,0.32088679,117660.0,117650.0,0.24064286]
[1753500256372,0.31238787,117660.0,117650.0,0.24064286]
[1753500256954,0.3123878,117660.0,117650.0,0.24064286]
[1753500257921,0.3280878,117660.0,117650.0,0.24064286]
[1753500258855,0.33658664,117660.0,117650.0,0.24064286]
[1753500259061,0.3280878,117660.0,117650.0,0.24064286]
[1753500260030,0.03569703,117660.0,117650.0,0.24064286]
[1753500260287,0.04419573,117660.0,117650.0,0.24064286]
[1753500263121,0.02849573,117660.0,117650.0,0.24064286]
[1753500263519,0.03699457,117660.0,117650.0,0.24064286]
[1753500263724,0.02849573,117660.0,117650.0,0.24064286]
[1753500265147,0.03699457,117660.0,117650.0,0.24064286]
[1753500266564,0.32088664,117660.0,117650.0,0.24064286]
[1753500266986,0.33648664,117660.0,117650.0,0.24064286]
[1753500268220,0.34498563,117660.0,117650.0,0.24064286]
[1753500268897,0.33648664,117660.0,117650.0,0.24064286]
[1753500269112,0.05259457,117660.0,117650.0,0.24064286]
[1753500269325,0.33648664,117660.0,117650.0,0.24064286]
[1753500269764,0.01699877,117650.0,117640.0,0.19439548]
[1753500270000,0.54581597,117650.0,117640.0,0.00048499]
[1753500270226,1.01726597,117650.0,117640.0,0.00048499]
[1753500270837,1.00876648,117650.0,117640.0,0.00048499]
[1753500271454,1.00976648,117650.0,117640.0,0.00048499]
[1753500272187,1.01076648,117650.0,117640.0,0.17049519]
[1753500273577,1.01076648,117650.0,117640.0,0.00048499]
[1753500280848,1.00795648,117650.0,117640.0,0.00048499]
[1753500289698,1.01076648,117650.0,117640.0,0.00048499]
[1753500294927,1.00795648,117650.0,117640.0,0.00048499]
[1753500295247,0.72406441,117650.0,117640.0,0.00048499]
[1753500295447,1.00795648,117650.0,117640.0,0.02400499]
[1753500310105,0.72406441,117650.0,117640.0,0.02400499]
[1753500310324,1.00795648,117650.0,117640.0,0.02400499]
[1753500310922,1.00795648,117650.0,117640.0,0.01400499]
[1753500311339,0.53595973,117640.0,117630.0,0.188913]
[1753500311544,0.95699187,117640.0,117630.0,0.190943]
[1753500313055,0.95699187,117640.0,117630.0,0.213933]
[1753500314087,0.9484918,117640.0,117630.0,0.213933]
[1753500314748,0.95699209,117640.0,117630.0,0.213933]
[1753500320488,0.95699209,117640.0,117630.0,0.198033]
[1753500320718,0.9505318,117640.0,117630.0,0.02801]
[1753500321325,0.9753718,117640.0,117630.0,0.19803465]
[1753500323309,0.19597468,117630.0,117620.0,0.1930291]
[1753500323512,0.19597468,117630.0,117620.0,0.02299]
[1753500323513,0.98385798,117630.0,117620.0,0.02299]
[1753500323721,1.00025798,117630.0,117620.0,0.02299]
[1753500323928,0.55299281,117620.0,117610.0,0.04217]
[1753500324144,0.82838373,117620.0,117610.0,0.32685356]
[1753500324557,0.82838373,117620.0,117610.0,0.33535623]
[1753500324773,0.82838373,117620.0,117610.0,0.34215356]
[1753500326360,0.948482,117620.0,117610.0,0.34215356]
[1753500329709,0.96525019,117620.0,117610.0,0.1286]
[1753500330154,0.96525019,117620.0,117610.0,0.15233]
[1753500330360,0.96525019,117620.0,117610.0,0.19891356]
[1753500331730,0.65808812,117620.0,117610.0,0.19891356]
[1753500334888,0.94198019,117620.0,117610.0,0.19891356]
[1753500335711,0.96525019,117620.0,117610.0,0.19891356]
[1753500335920,0.01700513,117610.0,117600.0,0.33849802]
[1753500336131,0.43999951,117610.0,117600.0,0.35550445]
[1753500336387,0.48027392,117610.0,117600.0,0.36063445]
[1753500336595,0.45700392,117610.0,117600.0,0.36063445]
[1753500336799,0.45700392,117610.0,117600.0,0.34362802]
[1753500336950,0.44850175,117610.0,117600.0,0.35213134]
[1753500337170,0.44850175,117610.0,117600.0,0.35217984]
[1753500337371,0.15610708,117610.0,117600.0,0.36068302]
[1753500337575,0.16460961,117610.0,117600.0,0.36068302]
[1753500337790,0.16460961,117610.0,117600.0,0.36168302]
[1753500338618,0.16460961,117610.0,117600.0,0.23308302]
[1753500338758,0.16460961,117610.0,117600.0,0.23308309]
[1753500339162,0.16460961,117610.0,117600.0,0.24158627]
[1753500339418,0.16460961,117610.0,117600.0,0.23308309]
[1753500339572,0.16460961,117610.0,117600.0,0.24158627]
[1753500340197,0.16460961,117610.0,117600.0,0.24168627]
[1753500340399,0.15610708,117610.0,117600.0,0.25018938]
[1753500341039,0.15610708,117610.0,117600.0,0.24168627]
[1753500341193,0.15610708,117610.0,117600.0,0.25018938]
[1753500341414,0.15610708,117610.0,117600.0,0.24168627]
[1753500341817,0.15610708,117610.0,117600.0,0.25018938]
[1753500342448,0.46595084,117610.0,117600.0,0.20007652]
[1753500342788,0.46595084,117610.0,117600.0,0.21708324]
[1753500343008,0.34361009,117610.0,117600.0,0.20007652]
[1753500343384,0.16505386,117610.0,117600.0,0.20007652]
[1753500343595,0.15655119,117610.0,117600.0,0.21808302]
[1753500343794,0.17355574,117610.0,117600.0,0.24108605]
[1753500344007,0.17155574,117610.0,117600.0,0.24108613]
[1753500344384,0.1800582,117610.0,117600.0,0.22407984]
[1753500344582,0.1885608,117610.0,117600.0,0.22407984]
[1753500344808,0.39918429,117610.0,117600.0,0.17326652]
[1753500345005,1.00607231,117610.0,117600.0,0.17121652]
[1753500345180,0.99756985,117610.0,117600.0,0.17121652]
[1753500346674,0.99756985,117610.0,117600.0,0.0011485]
[1753500347965,0.71367778,117610.0,117600.0,0.0011485]
[1753500348184,0.99756985,117610.0,117600.0,0.17121652]
[1753500348593,0.99756985,117610.0,117600.0,0.19494652]
[1753500352747,0.99756985,117610.0,117600.0,0.0248785]
[1753500352945,0.99756985,117610.0,117600.0,0.0011485]
[1753500353875,1.01560985,117610.0,117600.0,0.0011485]
[1753500354953,1.01564985,117610.0,117600.0,0.0011485]
[1753500356843,1.01280985,117610.0,117600.0,0.0011485]
[1753500359354,0.99760985,117610.0,117600.0,0.0011485]
[1753500359774,1.01410985,117610.0,117600.0,0.0011485]
[1753500360569,0.99760985,117610.0,117600.0,0.0011485]
[1753500361096,0.99760985,117610.0,117600.0,0.0254885]
[1753500361882,0.71371778,117610.0,117600.0,0.0254885]
[1753500362138,0.71371778,117610.0,117600.0,0.19555652]
[1753500362139,0.99760985,117610.0,117600.0,0.19555652]
[1753500362381,0.99760985,117610.0,117600.0,0.19850652]
[1753500362609,0.95903985,117610.0,117600.0,0.20057652]
[1753500363306,0.69848778,117610.0,117600.0,0.0305085]
[1753500363520,0.96758152,117610.0,117600.0,0.20057652]
[1753500363773,0.96758209,117610.0,117600.0,0.20057652]
[1753500363985,0.98241978,117610.0,117600.0,0.20057652]
[1753500364408,0.98241978,117610.0,117600.0,0.20907992]
[1753500364609,0.98241978,117610.0,117600.0,0.21758324]
[1753500364812,0.98241978,117610.0,117600.0,0.20907992]
[1753500365062,0.98241978,117610.0,117600.0,0.21758324]
[1753500365278,0.98241978,117610.0,117600.0,0.20057652]
[1753500366221,0.98241978,117610.0,117600.0,0.20907992]
[1753500366814,0.98241978,117610.0,117600.0,0.20057652]
[1753500367051,0.98241978,117610.0,117600.0,0.20907992]
[1753500367224,0.98241978,117610.0,117600.0,0.20057652]
[1753500367579,0.98241978,117610.0,117600.0,0.20907992]
[1753500367801,0.69852771,117610.0,117600.0,0.20907992]
[1753500368022,0.98241978,117610.0,117600.0,0.20057652]
[1753500368881,0.98241978,117610.0,117600.0,0.20907992]
[1753500369101,0.98241978,117610.0,117600.0,0.20057652]
[1753500369326,0.98241978,117610.0,117600.0,0.20907992]
[1753500369530,0.98241978,117610.0,117600.0,0.20057652]
[1753500371404,0.97391732,117610.0,117600.0,0.20057652]
[1753500373168,0.69002525,117610.0,117600.0,0.20057652]
[1753500373373,0.66668525,117610.0,117600.0,0.20907992]
[1753500373610,0.95057732,117610.0,117600.0,0.20907992]
[1753500373827,0.66668525,117610.0,117600.0,0.20057652]
[1753500374034,0.95057732,117610.0,117600.0,0.20057652]
[1753500374247,0.95057732,117610.0,117600.0,0.20907992]
[1753500374489,0.69002525,117610.0,117600.0,0.20907992]
[1753500376831,0.69002525,117610.0,117600.0,0.21758324]
[1753500377055,0.69002525,117610.0,117600.0,0.20907992]
[1753500377525,0.69002525,117610.0,117600.0,0.21758324]
[1753500377734,0.69002525,117610.0,117600.0,0.20907992]
[1753500377940,0.69002525,117610.0,117600.0,0.21758324]
[1753500378608,0.66668525,117610.0,117600.0,0.21758324]
[1753500378832,0.49471104,117610.0,117600.0,0.55768449]
[1753500379045,0.48620902,117610.0,117600.0,0.55768449]
[1753500379744,0.49471112,117610.0,117600.0,0.55768449]
[1753500380595,0.50321336,117610.0,117600.0,0.55768449]
[1753500381017,0.51171567,117610.0,117600.0,0.55768449]
[1753500381227,0.52021805,117610.0,117600.0,0.55768449]
[1753500381411,0.52021805,117610.0,117600.0,0.26528953]
[1753500381669,0.52872051,117610.0,117600.0,0.55768456]
[1753500381892,0.52872051,117610.0,117600.0,0.55768405]
[1753500382135,0.52872051,117610.0,117600.0,0.54918116]
[1753500382408,0.52872051,117610.0,117600.0,0.55768405]
[1753500383103,0.52021805,117610.0,117600.0,0.55768405]
[1753500383768,0.52021805,117610.0,117600.0,0.27379198]
[1753500383976,0.52021805,117610.0,117600.0,0.55768405]
[1753500384783,0.52021805,117610.0,117600.0,0.26528909]
[1753500385020,0.52872058,117610.0,117600.0,0.54918116]
[1753500385233,0.52872058,117610.0,117600.0,0.54918123]
[1753500385664,0.52872058,117610.0,117600.0,0.55768419]
[1753500386176,0.52872058,117610.0,117600.0,0.54918087]
[1753500386412,0.52872058,117610.0,117600.0,0.54067791]
[1753500386640,0.51171567,117610.0,117600.0,0.54067791]
[1753500386870,0.52021813,117610.0,117600.0,0.26528873]
[1753500387105,0.52021813,117610.0,117600.0,0.5491808]
[1753500387560,0.52021813,117610.0,117600.0,0.54067791]
[1753500388112,0.52872073,117610.0,117600.0,0.54067791]
[1753500388269,0.52021813,117610.0,117600.0,0.54918087]
[1753500388680,0.52021813,117610.0,117600.0,0.2652888]
[1753500388888,0.52021813,117610.0,117600.0,0.54918087]
[1753500389095,0.52021813,117610.0,117600.0,0.55768376]
[1753500389502,0.52021813,117610.0,117600.0,0.54918087]
[1753500390622,0.52872066,117610.0,117600.0,0.54067791]
[1753500390823,0.52872066,117610.0,117600.0,0.54918087]
[1753500391085,0.52872066,117610.0,117600.0,0.54067791]
[1753500391501,0.52872123,117610.0,117600.0,0.24828281]
[1753500391704,0.52872123,117610.0,117600.0,0.53217488]
[1753500392319,0.52021856,117610.0,117600.0,0.54067791]
[1753500392519,0.52872123,117610.0,117600.0,0.53217488]
[1753500392720,0.52021856,117610.0,117600.0,0.53217488]
[1753500392890,0.52021856,117610.0,117600.0,0.54067791]
[1753500393279,0.52872123,117610.0,117600.0,0.54067791]
[1753500393660,0.52021856,117610.0,117600.0,0.54918087]
[1753500394228,0.52872116,117610.0,117600.0,0.54067791]
[1753500394647,0.52872116,117610.0,117600.0,0.54918087]
[1753500394892,0.52872116,117610.0,117600.0,0.54067791]
[1753500395205,0.52021856,117610.0,117600.0,0.54918087]
[1753500395412,0.52021856,117610.0,117600.0,0.54067791]
[1753500395821,0.52872123,117610.0,117600.0,0.54067791]
[1753500396280,0.52021856,117610.0,117600.0,0.53217488]
[1753500396497,0.52021856,117610.0,117600.0,0.54067791]
[1753500396701,0.52021856,117610.0,117600.0,0.54918087]
[1753500397123,0.52021856,117610.0,117600.0,0.54067791]
[1753500397773,0.52021856,117610.0,117600.0,0.54918087]
[1753500398216,0.52021856,117610.0,117600.0,0.55768376]
[1753500398397,0.52021856,117610.0,117600.0,0.54918087]
[1753500398728,0.52021856,117610.0,117600.0,0.2652888]
[1753500398930,0.52021856,117610.0,117600.0,0.25678584]
[1753500399240,0.52021856,117610.0,117600.0,0.54067791]
[1753500399431,0.52021856,117610.0,117600.0,0.54918087]
[1753500401713,0.51171603,117610.0,117600.0,0.55768376]
[1753500402954,0.50321357,117610.0,117600.0,0.55768376]
[1753500403133,0.51171603,117610.0,117600.0,0.55768376]
[1753500404376,0.69027219,117610.0,117600.0,0.53217488]
[1753500405104,0.52021863,117610.0,117600.0,0.54918087]
[1753500406317,0.5287213,117610.0,117600.0,0.2652888]
[1753500406619,0.5287213,117610.0,117600.0,0.54918087]
[1753500406825,0.52021863,117610.0,117600.0,0.54918087]
[1753500407048,0.5287213,117610.0,117600.0,0.54067791]
[1753500407248,0.52021906,117610.0,117600.0,0.53217488]
[1753500407533,0.52021906,117610.0,117600.0,0.25678584]
[1753500407732,0.52021906,117610.0,117600.0,0.54918087]
[1753500409948,0.51171639,117610.0,117600.0,0.55768376]
[1753500410149,0.51171639,117610.0,117600.0,0.54918087]
[1753500410348,0.51171639,117610.0,117600.0,0.55768376]
[1753500410550,0.51171639,117610.0,117600.0,0.54918087]
[1753500411031,0.51171639,117610.0,117600.0,0.55768376]
[1753500411236,0.51171639,117610.0,117600.0,0.54918087]
[1753500411584,0.52021906,117610.0,117600.0,0.54067791]
[1753500411973,0.69027262,117610.0,117600.0,0.22608635]
[1753500412178,0.69027262,117610.0,117600.0,0.50997842]
[1753500413963,0.51171639,117610.0,117600.0,0.50997842]
[1753500414145,0.51171639,117610.0,117600.0,0.51848145]
[1753500414350,0.51171639,117610.0,117600.0,0.50997842]
[1753500415039,0.51171639,117610.0,117600.0,0.52698434]
[1753500415040,0.35744902,117610.0,117600.0,0.52698434]
[1753500415243,0.36595112,117610.0,117600.0,0.54218434]
[1753500415475,0.37445343,117610.0,117600.0,0.54218434]
[1753500415680,0.37445343,117610.0,117600.0,0.54218441]
[1753500415921,0.37445343,117610.0,117600.0,0.53368101]
[1753500416122,0.36595112,117610.0,117600.0,0.5421839]
[1753500416348,0.37445329,117610.0,117600.0,0.5421839]
[1753500416680,0.35744902,117610.0,117600.0,0.5421839]
[1753500416894,0.46872,117610.0,117600.0,0.5577839]
[1753500417094,0.12872,117610.0,117600.0,0.5577839]
[1753500417737,0.12872,117610.0,117600.0,0.97039597]
[1753500418291,0.42325162,117630.0,117620.0,0.18704264]
[1753500418494,0.55399162,117630.0,117620.0,0.18704264]
[1753500418704,0.56249278,117630.0,117620.0,0.17854091]
[1753500419338,0.56249278,117630.0,117620.0,0.18704264]
[1753500419462,0.56249278,117630.0,117620.0,0.21308616]
[1753500419883,0.56249278,117630.0,117620.0,0.20458435]
[1753500420150,0.73251743,117630.0,117620.0,0.21308623]
[1753500420308,0.73351743,117630.0,117620.0,0.20996623]
[1753500420723,0.73351743,117630.0,117620.0,0.21846804]
[1753500420918,0.72501678,117630.0,117620.0,0.18685623]
[1753500421128,0.72601678,117630.0,117620.0,0.18685623]
[1753500421355,0.71751591,117630.0,117620.0,0.1700391]
[1753500422529,0.71751591,117630.0,117620.0,0.17854105]
[1753500422745,0.72601714,117630.0,117620.0,0.17854105]
[1753500423658,0.72601714,117630.0,117620.0,0.1700391]
[1753500424846,0.72601714,117630.0,117620.0,0.17854105]
[1753500425469,0.72601714,117630.0,117620.0,0.1700391]
[1753500426914,0.72601714,117630.0,117620.0,0.17854105]
[1753500427295,0.72601714,117630.0,117620.0,0.1700391]
[1753500429326,1.00140813,117630.0,117620.0,0.1700391]
[1753500432300,0.5389896,117630.0,117620.0,0.1700391]
[1753500432521,1.01840935,117630.0,117620.0,0.1700391]
[1753500432955,0.7260167,117630.0,117620.0,0.1700391]
[1753500438600,0.71751591,117630.0,117620.0,0.1700391]
[1753500446085,0.71751591,117630.0,117620.0,0.1931491]
[1753500446729,0.71751591,117630.0,117620.0,0.1932491]
[1753500451395,0.71751591,117630.0,117620.0,0.1701391]
[1753500454243,0.14808902,117630.0,117620.0,0.53805615]
[1753500455612,0.14708902,117630.0,117620.0,0.53805615]
[1753500456043,0.14608902,117630.0,117620.0,0.53805615]
[1753500456276,0.14708902,117630.0,117620.0,0.53805615]
[1753500456503,0.1555896,117630.0,117620.0,0.25416408]
[1753500456725,0.16409032,117630.0,117620.0,0.53805615]
[1753500456945,0.16409032,117630.0,117620.0,0.53805623]
[1753500457176,0.16409032,117630.0,117620.0,0.52285623]
[1753500457799,0.16409032,117630.0,117620.0,0.52293623]
[1753500458072,0.16409032,117630.0,117620.0,0.53143767]
[1753500459331,0.17259126,117630.0,117620.0,0.23054264]
[1753500459531,0.17259119,117630.0,117620.0,0.50773637]
[1753500459757,0.17259119,117630.0,117620.0,0.50773644]
[1753500459955,0.17259119,117630.0,117620.0,0.49923486]
[1753500460133,0.17259119,117630.0,117620.0,0.50773645]
[1753500460539,0.17259119,117630.0,117620.0,0.49923486]
[1753500460710,0.17259119,117630.0,117620.0,0.50773652]
[1753500461155,0.1810922,117630.0,117620.0,0.50773652]
[1753500461386,0.18109213,117630.0,117620.0,0.50773652]
[1753500461584,0.18109213,117630.0,117620.0,0.51623811]
[1753500462104,0.17259119,117630.0,117620.0,0.51623811]
[1753500462521,0.17259119,117630.0,117620.0,0.22384445]